[Event "*** Titled Tuesday Blitz"]
[Site "Chess.com"]
[Date "2020.04.07"]
[Round "4"]
[White "dennisodessa"]
[Black "TheCount"]
[Result "1-0"]
[WhiteElo "2265"]
[BlackElo "2623"]
[TimeControl "180+1"]
[EndTime "13:36:40 PDT"]
[Termination "dennisodessa won by resignation"]

1. c4 {[%clk 0:03:00.3]} 1... Nf6 {[%clk 0:02:57]} 2. d4 {[%clk 0:02:59.7]} 2...
g6 {[%clk 0:02:54.8]} 3. Nc3 {[%clk 0:02:59.7]} 3... d5 {[%clk 0:02:55]} 4. Bg5
{[%clk 0:02:58.6]} 4... Ne4 {[%clk 0:02:52.2]} 5. Nxe4 {[%clk 0:02:57.2]} 5...
dxe4 {[%clk 0:02:52.2]} 6. e3 {[%clk 0:02:57.7]} 6... Bg7 {[%clk 0:02:52.3]} 7.
Qd2 {[%clk 0:02:57.8]} 7... O-O {[%clk 0:02:52.5]} 8. Ne2 {[%clk 0:02:57.7]}
8... c5 {[%clk 0:02:52.9]} 9. d5 {[%clk 0:02:58.1]} 9... h6 {[%clk 0:02:52.7]}
10. Bh4 {[%clk 0:02:58.2]} 10... g5 {[%clk 0:02:49.5]} 11. Bg3 {[%clk
0:02:58.2]} 11... e6 {[%clk 0:02:50]} 12. Nc3 {[%clk 0:02:56.1]} 12... exd5
{[%clk 0:02:49.3]} 13. cxd5 {[%clk 0:02:52.1]} 13... Nd7 {[%clk 0:02:45]} 14.
Nxe4 {[%clk 0:02:47.9]} 14... f5 {[%clk 0:02:42.4]} 15. Nc3 {[%clk 0:02:43.3]}
15... f4 {[%clk 0:02:41.5]} 16. exf4 {[%clk 0:02:43.2]} 16... gxf4 {[%clk
0:02:40.1]} 17. Bxf4 {[%clk 0:02:42.8]} 17... Qf6 {[%clk 0:02:34.6]} 18. Be3
{[%clk 0:02:38.4]} 18... Ne5 {[%clk 0:02:33.8]} 19. Be2 {[%clk 0:02:34.8]} 19...
Qg6 {[%clk 0:02:26.1]} 20. Bxc5 {[%clk 0:02:16.8]} 1-0

[Event "*** Titled Tuesday Blitz"]
[Site "Chess.com"]
[Date "2020.04.07"]
[Round "4"]
[White "JustWatch000"]
[Black "Evgeny81"]
[Result "0-1"]
[WhiteElo "2588"]
[BlackElo "2763"]
[TimeControl "180+1"]
[EndTime "13:37:13 PDT"]
[Termination "Evgeny81 won by resignation"]

1. e4 {[%clk 0:03:00.9]} 1... e5 {[%clk 0:03:00]} 2. Nf3 {[%clk 0:03:00]} 2...
Nc6 {[%clk 0:03:00.5]} 3. Nc3 {[%clk 0:03:00.3]} 3... Nf6 {[%clk 0:03:00.1]} 4.
Bb5 {[%clk 0:03:00.2]} 4... Bd6 {[%clk 0:02:57.9]} 5. a3 {[%clk 0:02:57.7]} 5...
O-O {[%clk 0:02:56.1]} 6. g4 {[%clk 0:02:56.6]} 6... Nd4 {[%clk 0:02:49.2]} 7.
g5 {[%clk 0:02:54.2]} 7... Ne8 {[%clk 0:02:44.9]} 8. Bc4 {[%clk 0:02:51.2]} 8...
c6 {[%clk 0:02:42.5]} 9. d3 {[%clk 0:02:48.7]} 9... Bc7 {[%clk 0:02:40.8]} 10.
Ba2 {[%clk 0:02:45.9]} 10... d5 {[%clk 0:02:39.2]} 11. Nxd4 {[%clk 0:02:43.3]}
11... exd4 {[%clk 0:02:39.2]} 12. Ne2 {[%clk 0:02:43.8]} 12... Bg4 {[%clk
0:02:31]} 13. Rg1 {[%clk 0:02:36]} 13... Bf3 {[%clk 0:02:29]} 14. exd5 {[%clk
0:02:27.6]} 14... cxd5 {[%clk 0:02:28.6]} 15. c3 {[%clk 0:02:08.9]} 15... Bxh2
{[%clk 0:02:24.9]} 16. Rf1 {[%clk 0:02:03.3]} 16... Nd6 {[%clk 0:02:23.1]} 17.
cxd4 {[%clk 0:01:56.5]} 17... Re8 {[%clk 0:02:15]} 18. Be3 {[%clk 0:01:56.5]}
18... Nf5 {[%clk 0:02:15.1]} 19. Qd2 {[%clk 0:01:55.9]} 19... Rc8 {[%clk
0:01:59.4]} 20. Nc3 {[%clk 0:01:27]} 20... Qxg5 {[%clk 0:01:55.2]} 0-1

[Event "*** Titled Tuesday Blitz"]
[Site "Chess.com"]
[Date "2020.04.07"]
[Round "4"]
[White "ADODOVE"]
[Black "indfraeng"]
[Result "1-0"]
[WhiteElo "1834"]
[BlackElo "2234"]
[TimeControl "180+1"]
[EndTime "13:37:22 PDT"]
[Termination "ADODOVE won by resignation"]

1. e4 {[%clk 0:03:00.9]} 1... e5 {[%clk 0:03:00.2]} 2. Nf3 {[%clk 0:02:59.9]}
2... Nc6 {[%clk 0:03:00.6]} 3. d4 {[%clk 0:03:00]} 3... exd4 {[%clk 0:02:59.8]}
4. Bc4 {[%clk 0:03:00.4]} 4... Bc5 {[%clk 0:02:57.2]} 5. O-O {[%clk 0:03:00.3]}
5... Nge7 {[%clk 0:02:47.8]} 6. Ng5 {[%clk 0:02:49.2]} 6... d5 {[%clk
0:02:41.9]} 7. exd5 {[%clk 0:02:36.4]} 7... Nxd5 {[%clk 0:02:42.8]} 8. Nxf7
{[%clk 0:02:30.2]} 8... Kxf7 {[%clk 0:02:39.1]} 9. Qf3+ {[%clk 0:02:17.3]} 9...
Ke6 {[%clk 0:02:37.4]} 10. Re1+ {[%clk 0:02:09.7]} 10... Ne5 {[%clk 0:02:34.8]}
11. Bf4 {[%clk 0:01:23.9]} 11... Qf6 {[%clk 0:02:03.1]} 12. Qxd5+ {[%clk
0:01:18.6]} 12... Ke7 {[%clk 0:02:00.4]} 13. Rxe5+ {[%clk 0:01:16.4]} 13... Kf8
{[%clk 0:01:54.7]} 14. Bg5 {[%clk 0:01:05.1]} 14... c6 {[%clk 0:01:49.1]} 15.
Qxc5+ {[%clk 0:00:59.6]} 15... Qd6 {[%clk 0:01:49.2]} 1-0

[Event "*** Titled Tuesday Blitz"]
[Site "Chess.com"]
[Date "2020.04.07"]
[Round "4"]
[White "Mizner"]
[Black "kuli4ik"]
[Result "0-1"]
[WhiteElo "2552"]
[BlackElo "2783"]
[TimeControl "180+1"]
[EndTime "13:37:35 PDT"]
[Termination "kuli4ik won by resignation"]

1. e4 {[%clk 0:03:00.9]} 1... Nf6 {[%clk 0:03:00.3]} 2. e5 {[%clk 0:03:00.8]}
2... Nd5 {[%clk 0:03:00.5]} 3. d4 {[%clk 0:03:01.4]} 3... d6 {[%clk 0:03:00.9]}
4. c4 {[%clk 0:03:01.4]} 4... Nb6 {[%clk 0:03:01.1]} 5. f4 {[%clk 0:03:01.8]}
5... g6 {[%clk 0:02:58]} 6. Be3 {[%clk 0:02:59.7]} 6... dxe5 {[%clk 0:02:54.4]}
7. fxe5 {[%clk 0:02:59.1]} 7... c5 {[%clk 0:02:55]} 8. d5 {[%clk 0:02:54.5]}
8... Bg7 {[%clk 0:02:54.8]} 9. Nc3 {[%clk 0:02:41.3]} 9... O-O {[%clk
0:02:52.1]} 10. Bxc5 {[%clk 0:02:36.5]} 10... N8d7 {[%clk 0:02:50.4]} 11. Bd4
{[%clk 0:02:31.8]} 11... Nxe5 {[%clk 0:02:49.1]} 12. b3 {[%clk 0:02:28.4]} 12...
e6 {[%clk 0:02:44.1]} 13. Be2 {[%clk 0:02:15.1]} 13... exd5 {[%clk 0:02:42.1]}
14. c5 {[%clk 0:02:06.8]} 14... Nbd7 {[%clk 0:02:38.9]} 15. Nxd5 {[%clk
0:02:01.3]} 15... Re8 {[%clk 0:02:38.6]} 16. Qd2 {[%clk 0:01:43.5]} 16... Qh4+
{[%clk 0:02:11.5]} 17. Bf2 {[%clk 0:01:42.4]} 17... Qe4 {[%clk 0:02:11.1]} 18.
Nc7 {[%clk 0:01:32.2]} 18... Nd3+ {[%clk 0:02:09.7]} 19. Kf1 {[%clk 0:01:20.5]}
19... Nxf2 {[%clk 0:02:08.2]} 20. Nxe8 {[%clk 0:01:17.1]} 20... Bxa1 {[%clk
0:02:02.9]} 21. Nd6 {[%clk 0:01:15.3]} 21... Qd4 {[%clk 0:01:59]} 22. Qxd4
{[%clk 0:01:09]} 22... Bxd4 {[%clk 0:01:57.7]} 23. Nf3 {[%clk 0:01:09.6]} 23...
Bxc5 {[%clk 0:01:55.7]} 0-1

[Event "*** Titled Tuesday Blitz"]
[Site "Chess.com"]
[Date "2020.04.07"]
[Round "4"]
[White "Taabling"]
[Black "IMDT02"]
[Result "1-0"]
[WhiteElo "2300"]
[BlackElo "2458"]
[TimeControl "180+1"]
[EndTime "13:38:00 PDT"]
[Termination "Taabling won by resignation"]

1. e4 {[%clk 0:03:00.9]} 1... c5 {[%clk 0:02:56]} 2. Nf3 {[%clk 0:03:00.6]} 2...
Nc6 {[%clk 0:02:56.5]} 3. g3 {[%clk 0:02:59.3]} 3... Nf6 {[%clk 0:02:55.3]} 4.
d3 {[%clk 0:02:59.1]} 4... g6 {[%clk 0:02:55.3]} 5. Bg2 {[%clk 0:02:58.8]} 5...
Bg7 {[%clk 0:02:55.7]} 6. O-O {[%clk 0:02:55.8]} 6... O-O {[%clk 0:02:56.2]} 7.
Qe2 {[%clk 0:02:55.5]} 7... d6 {[%clk 0:02:56.4]} 8. c3 {[%clk 0:02:52]} 8... e5
{[%clk 0:02:56.6]} 9. a3 {[%clk 0:02:48.5]} 9... Re8 {[%clk 0:02:54.2]} 10. b4
{[%clk 0:02:47.7]} 10... b6 {[%clk 0:02:53.6]} 11. Bb2 {[%clk 0:02:44.8]} 11...
Ba6 {[%clk 0:02:49.3]} 12. Nbd2 {[%clk 0:02:41]} 12... Rc8 {[%clk 0:02:42.2]}
13. Rfe1 {[%clk 0:02:34.9]} 13... Bb7 {[%clk 0:02:32.9]} 14. Nc4 {[%clk
0:02:21.7]} 14... b5 {[%clk 0:02:21.5]} 15. Ne3 {[%clk 0:02:20]} 15... a6 {[%clk
0:02:20.6]} 16. Nd5 {[%clk 0:02:17.1]} 16... Nxd5 {[%clk 0:02:19.7]} 17. exd5
{[%clk 0:02:18]} 17... Ne7 {[%clk 0:02:20.3]} 18. c4 {[%clk 0:02:18.1]} 18...
Qb6 {[%clk 0:02:13.1]} 19. bxc5 {[%clk 0:02:14.5]} 19... Qxc5 {[%clk 0:02:11.6]}
20. Rac1 {[%clk 0:02:13.9]} 20... bxc4 {[%clk 0:02:11]} 21. dxc4 {[%clk
0:02:12.8]} 21... a5 {[%clk 0:02:05.3]} 22. Ng5 {[%clk 0:02:11.9]} 22... Ba6
{[%clk 0:02:00.3]} 23. Bf1 {[%clk 0:02:11.1]} 23... Nxd5 {[%clk 0:01:55]} 24.
Ne4 {[%clk 0:02:02.2]} 24... Qb6 {[%clk 0:01:10.3]} 25. Qd2 {[%clk 0:02:01.9]}
25... Nf6 {[%clk 0:00:45.8]} 26. Qxd6 {[%clk 0:01:58.4]} 26... Qa7 {[%clk
0:00:42]} 27. Nxf6+ {[%clk 0:01:57.4]} 1-0

[Event "*** Titled Tuesday Blitz"]
[Site "Chess.com"]
[Date "2020.04.07"]
[Round "4"]
[White "A-Fier"]
[Black "skoularikii"]
[Result "1-0"]
[WhiteElo "2820"]
[BlackElo "2483"]
[TimeControl "180+1"]
[EndTime "13:38:02 PDT"]
[Termination "A-Fier won by resignation"]

1. e4 {[%clk 0:03:00.9]} 1... e5 {[%clk 0:02:58.7]} 2. f4 {[%clk 0:02:59.9]}
2... exf4 {[%clk 0:02:53.9]} 3. Nf3 {[%clk 0:02:59.3]} 3... g5 {[%clk
0:02:52.7]} 4. h4 {[%clk 0:02:58.5]} 4... g4 {[%clk 0:02:48.8]} 5. Ne5 {[%clk
0:02:58.6]} 5... d6 {[%clk 0:02:43]} 6. Nxg4 {[%clk 0:02:58.1]} 6... Be7 {[%clk
0:02:31.6]} 7. d4 {[%clk 0:02:57.1]} 7... Bxh4+ {[%clk 0:02:29.6]} 8. Nf2 {[%clk
0:02:57.7]} 8... Qg5 {[%clk 0:02:11.7]} 9. Qf3 {[%clk 0:02:54.3]} 9... Nc6
{[%clk 0:01:56.3]} 10. Bb5 {[%clk 0:02:43.4]} 10... Bd7 {[%clk 0:01:36.1]} 11.
Bxc6 {[%clk 0:02:36.3]} 11... bxc6 {[%clk 0:01:33.4]} 12. Bxf4 {[%clk
0:02:36.5]} 12... Qe7 {[%clk 0:01:27.5]} 13. Nc3 {[%clk 0:02:35.6]} 13... Rb8
{[%clk 0:01:16.1]} 14. O-O-O {[%clk 0:02:35.8]} 14... Bg5 {[%clk 0:01:15.4]} 15.
Nd3 {[%clk 0:02:31.9]} 15... Bxf4+ {[%clk 0:01:00]} 16. Nxf4 {[%clk 0:02:32.8]}
16... Nf6 {[%clk 0:00:59.9]} 17. e5 {[%clk 0:02:33.2]} 17... Bg4 {[%clk
0:00:55.2]} 18. exf6 {[%clk 0:02:31.3]} 18... Bxf3 {[%clk 0:00:54.2]} 19. fxe7
{[%clk 0:02:31.4]} 19... Bxd1 {[%clk 0:00:54.3]} 20. Nxd1 {[%clk 0:02:31.7]}
20... Kxe7 {[%clk 0:00:54.8]} 21. Ne3 {[%clk 0:02:31]} 21... Rbg8 {[%clk
0:00:55]} 22. Rh6 {[%clk 0:02:30]} 22... Rg5 {[%clk 0:00:53.4]} 23. g4 {[%clk
0:02:30.5]} 23... Kd7 {[%clk 0:00:50.7]} 24. Nh5 {[%clk 0:02:29.8]} 24... Rg6
{[%clk 0:00:47.9]} 25. Nf6+ {[%clk 0:02:28.3]} 25... Ke6 {[%clk 0:00:47.8]} 26.
Rxh7 {[%clk 0:02:21.6]} 26... Rxh7 {[%clk 0:00:45.6]} 27. Nxh7 {[%clk
0:02:22.5]} 27... Rh6 {[%clk 0:00:43.9]} 28. Ng5+ {[%clk 0:02:22.3]} 28... Ke7
{[%clk 0:00:44.2]} 29. Kd2 {[%clk 0:02:20.5]} 29... Rh2+ {[%clk 0:00:38.1]} 30.
Kd3 {[%clk 0:02:20.7]} 30... d5 {[%clk 0:00:38]} 31. Nf3 {[%clk 0:02:18.8]}
31... Kf6 {[%clk 0:00:38]} 32. Nxh2 {[%clk 0:02:18.8]} 1-0

[Event "*** Titled Tuesday Blitz"]
[Site "Chess.com"]
[Date "2020.04.07"]
[Round "4"]
[White "Gennady_Kozlov"]
[Black "SGchess01"]
[Result "1-0"]
[WhiteElo "2595"]
[BlackElo "2793"]
[TimeControl "180+1"]
[EndTime "13:38:07 PDT"]
[Termination "Gennady_Kozlov won by resignation"]

1. b3 {[%clk 0:03:00.4]} 1... e5 {[%clk 0:02:59.7]} 2. Bb2 {[%clk 0:03:01.3]}
2... d6 {[%clk 0:03:00.5]} 3. e3 {[%clk 0:03:01.4]} 3... Be7 {[%clk 0:03:00.9]}
4. d4 {[%clk 0:03:02]} 4... exd4 {[%clk 0:03:01.2]} 5. exd4 {[%clk 0:03:02.9]}
5... d5 {[%clk 0:02:59.6]} 6. Nf3 {[%clk 0:03:02.2]} 6... Nf6 {[%clk 0:02:59.7]}
7. h3 {[%clk 0:03:01.8]} 7... O-O {[%clk 0:03:00.6]} 8. Bd3 {[%clk 0:03:01.7]}
8... Re8 {[%clk 0:02:54.2]} 9. O-O {[%clk 0:03:02.6]} 9... Nbd7 {[%clk
0:02:54.9]} 10. Re1 {[%clk 0:02:55]} 10... Nf8 {[%clk 0:02:54.1]} 11. Nbd2
{[%clk 0:02:53.7]} 11... Ng6 {[%clk 0:02:51]} 12. Bxg6 {[%clk 0:02:51.9]} 12...
hxg6 {[%clk 0:02:50]} 13. Ne5 {[%clk 0:02:51.8]} 13... c6 {[%clk 0:02:46.7]} 14.
c4 {[%clk 0:02:49.8]} 14... Bf8 {[%clk 0:02:44.5]} 15. Ndf3 {[%clk 0:02:48.8]}
15... Bf5 {[%clk 0:02:43.4]} 16. Ng5 {[%clk 0:02:44.8]} 16... Re7 {[%clk
0:02:17.9]} 17. g4 {[%clk 0:02:29.5]} 17... Bd7 {[%clk 0:02:08.5]} 18. Qd3
{[%clk 0:02:10.7]} 18... Be8 {[%clk 0:01:51.9]} 19. Ba3 {[%clk 0:01:48.4]} 19...
Rxe5 {[%clk 0:01:09.9]} 20. dxe5 {[%clk 0:01:49.3]} 20... Bxa3 {[%clk
0:01:09.5]} 21. exf6 {[%clk 0:01:49.3]} 21... Qxf6 {[%clk 0:01:10.1]} 22. Qe3
{[%clk 0:01:36.1]} 22... d4 {[%clk 0:00:51.8]} 23. Qxe8+ {[%clk 0:01:34.6]}
23... Rxe8 {[%clk 0:00:52.7]} 24. Rxe8+ {[%clk 0:01:34.6]} 24... Bf8 {[%clk
0:00:53.3]} 25. Rxf8+ {[%clk 0:01:35.2]} 1-0

[Event "*** Titled Tuesday Blitz"]
[Site "Chess.com"]
[Date "2020.04.07"]
[Round "4"]
[White "SmirnovAlexandrA"]
[Black "saisree"]
[Result "1-0"]
[WhiteElo "2229"]
[BlackElo "2328"]
[TimeControl "180+1"]
[EndTime "13:38:11 PDT"]
[Termination "SmirnovAlexandrA won by resignation"]

1. e4 {[%clk 0:03:00.9]} 1... c6 {[%clk 0:03:00]} 2. d4 {[%clk 0:03:00.3]} 2...
d5 {[%clk 0:03:00.6]} 3. e5 {[%clk 0:03:00.6]} 3... Bf5 {[%clk 0:03:00.4]} 4.
Nf3 {[%clk 0:03:00.8]} 4... e6 {[%clk 0:03:00.8]} 5. Be2 {[%clk 0:03:01.3]} 5...
c5 {[%clk 0:03:00.7]} 6. Be3 {[%clk 0:03:01]} 6... cxd4 {[%clk 0:03:01]} 7. Nxd4
{[%clk 0:03:00.4]} 7... Ne7 {[%clk 0:03:01.9]} 8. O-O {[%clk 0:02:58.9]} 8...
Nbc6 {[%clk 0:03:02.3]} 9. c4 {[%clk 0:02:53.3]} 9... Nxd4 {[%clk 0:02:36.9]}
10. Bxd4 {[%clk 0:02:52.2]} 10... Nc6 {[%clk 0:02:36.7]} 11. cxd5 {[%clk
0:02:51.4]} 11... Qxd5 {[%clk 0:02:36.8]} 12. Bc3 {[%clk 0:02:47.8]} 12... O-O-O
{[%clk 0:02:35.7]} 13. Na3 {[%clk 0:02:38.6]} 13... Bxa3 {[%clk 0:02:28.8]} 14.
bxa3 {[%clk 0:02:39.5]} 14... Nxe5 {[%clk 0:02:26.9]} 15. Qa4 {[%clk 0:02:30.5]}
15... Nc6 {[%clk 0:02:16.9]} 16. Bf3 {[%clk 0:02:29.4]} 16... Qc5 {[%clk
0:02:13]} 17. Rfc1 {[%clk 0:02:11.5]} 17... e5 {[%clk 0:01:17.7]} 18. Bxc6
{[%clk 0:01:56.3]} 18... bxc6 {[%clk 0:01:14.4]} 19. Bxe5 {[%clk 0:01:51.4]}
19... Qxe5 {[%clk 0:00:31.2]} 20. Qxc6+ {[%clk 0:01:48.6]} 20... Kb8 {[%clk
0:00:31.8]} 21. Rab1+ {[%clk 0:01:46.1]} 21... Bxb1 {[%clk 0:00:32.2]} 22. Rxb1+
{[%clk 0:01:47]} 1-0

[Event "*** Titled Tuesday Blitz"]
[Site "Chess.com"]
[Date "2020.04.07"]
[Round "4"]
[White "TheCavemanChesss"]
[Black "Konavets"]
[Result "1-0"]
[WhiteElo "2621"]
[BlackElo "3003"]
[TimeControl "180+1"]
[EndTime "13:38:18 PDT"]
[Termination "TheCavemanChesss won by checkmate"]

1. e4 {[%clk 0:03:00.9]} 1... c5 {[%clk 0:02:59.7]} 2. Nf3 {[%clk 0:03:00.8]}
2... e6 {[%clk 0:02:59.5]} 3. d4 {[%clk 0:03:01.1]} 3... cxd4 {[%clk 0:03:00.4]}
4. Nxd4 {[%clk 0:03:02]} 4... Nc6 {[%clk 0:03:00.9]} 5. Nc3 {[%clk 0:03:02.4]}
5... Qc7 {[%clk 0:03:00.6]} 6. Be3 {[%clk 0:03:02.2]} 6... Nf6 {[%clk
0:02:59.7]} 7. f4 {[%clk 0:03:00.1]} 7... d6 {[%clk 0:02:54.5]} 8. Qd2 {[%clk
0:02:53.2]} 8... a6 {[%clk 0:02:53.9]} 9. O-O-O {[%clk 0:02:52.4]} 9... Be7
{[%clk 0:02:54.3]} 10. Be2 {[%clk 0:02:50.6]} 10... Bd7 {[%clk 0:02:51.8]} 11.
g4 {[%clk 0:02:44.9]} 11... Nxd4 {[%clk 0:02:52]} 12. Qxd4 {[%clk 0:02:19.8]}
12... Bc6 {[%clk 0:02:52.2]} 13. g5 {[%clk 0:02:19.4]} 13... e5 {[%clk
0:02:52.6]} 14. Qd3 {[%clk 0:02:07.5]} 14... Nd7 {[%clk 0:02:51.8]} 15. f5
{[%clk 0:01:53.7]} 15... Rc8 {[%clk 0:02:51.5]} 16. Kb1 {[%clk 0:01:50]} 16...
b5 {[%clk 0:02:50.7]} 17. h4 {[%clk 0:01:41.7]} 17... b4 {[%clk 0:02:50.3]} 18.
Nd5 {[%clk 0:01:42.1]} 18... Bxd5 {[%clk 0:02:50.6]} 19. exd5 {[%clk 0:01:43]}
19... a5 {[%clk 0:02:48.6]} 20. h5 {[%clk 0:01:36]} 20... h6 {[%clk 0:02:46.9]}
21. f6 {[%clk 0:01:35.6]} 21... gxf6 {[%clk 0:02:45.1]} 22. g6 {[%clk
0:01:36.1]} 22... fxg6 {[%clk 0:02:36.2]} 23. Qxg6+ {[%clk 0:01:34.3]} 23... Kd8
{[%clk 0:02:36.2]} 24. Bg4 {[%clk 0:01:25.7]} 24... Qc4 {[%clk 0:02:31.3]} 25.
Bf5 {[%clk 0:01:00.9]} 25... a4 {[%clk 0:02:30.5]} 26. Qg7 {[%clk 0:00:43.7]}
26... Re8 {[%clk 0:02:28.9]} 27. Rd3 {[%clk 0:00:36.3]} 27... Qxc2+ {[%clk
0:02:27.3]} 28. Ka1 {[%clk 0:00:36.8]} 28... a3 {[%clk 0:02:25.6]} 29. Rb1
{[%clk 0:00:20.9]} 29... b3 {[%clk 0:02:25.2]} 30. Qg4 {[%clk 0:00:11.1]} 30...
bxa2 {[%clk 0:02:23.4]} 31. Kxa2 {[%clk 0:00:12]} 31... axb2 {[%clk 0:02:23.6]}
32. Bxd7 {[%clk 0:00:11]} 32... Ra8+ {[%clk 0:02:22.2]} 33. Ra3 {[%clk
0:00:11.9]} 33... Rxa3+ {[%clk 0:02:22.3]} 34. Kxa3 {[%clk 0:00:12.8]} 34...
Qxb1 {[%clk 0:02:22.8]} 35. Bb6# {[%clk 0:00:12]} 1-0

[Event "*** Titled Tuesday Blitz"]
[Site "Chess.com"]
[Date "2020.04.07"]
[Round "4"]
[White "Magician4MA"]
[Black "Nathan_Filgueiras"]
[Result "1-0"]
[WhiteElo "2480"]
[BlackElo "2307"]
[TimeControl "180+1"]
[EndTime "13:38:34 PDT"]
[Termination "Magician4MA won by resignation"]

1. e4 {[%clk 0:03:00.9]} 1... c5 {[%clk 0:02:59.1]} 2. Nf3 {[%clk 0:02:55.8]}
2... Nc6 {[%clk 0:02:59.4]} 3. d4 {[%clk 0:02:54.5]} 3... cxd4 {[%clk
0:03:00.3]} 4. Nxd4 {[%clk 0:02:55]} 4... e5 {[%clk 0:03:00.1]} 5. Nb5 {[%clk
0:02:46.7]} 5... d6 {[%clk 0:02:59.6]} 6. Bc4 {[%clk 0:02:29.4]} 6... Nf6 {[%clk
0:02:45.5]} 7. Bg5 {[%clk 0:02:16]} 7... Be7 {[%clk 0:01:53]} 8. Bxf6 {[%clk
0:02:11]} 8... gxf6 {[%clk 0:01:53.9]} 9. Qh5 {[%clk 0:02:08.1]} 9... O-O {[%clk
0:01:39.9]} 10. O-O {[%clk 0:02:00.8]} 10... Be6 {[%clk 0:01:18.9]} 11. Nd2
{[%clk 0:01:44.5]} 11... a6 {[%clk 0:01:17]} 12. Nc3 {[%clk 0:01:41.6]} 12...
Qd7 {[%clk 0:01:03.3]} 13. f4 {[%clk 0:01:29]} 13... exf4 {[%clk 0:00:43.3]} 14.
Rxf4 {[%clk 0:01:21.7]} 14... Ne5 {[%clk 0:00:41.2]} 15. Rh4 {[%clk 0:01:19.5]}
1-0

[Event "*** Titled Tuesday Blitz"]
[Site "Chess.com"]
[Date "2020.04.07"]
[Round "4"]
[White "DrMelekess"]
[Black "bait_or_mate"]
[Result "1-0"]
[WhiteElo "2715"]
[BlackElo "2510"]
[TimeControl "180+1"]
[EndTime "13:38:41 PDT"]
[Termination "DrMelekess won by resignation"]

1. d4 {[%clk 0:03:00.9]} 1... Nf6 {[%clk 0:02:56.5]} 2. Nf3 {[%clk 0:02:59.1]}
2... d5 {[%clk 0:02:56.2]} 3. e3 {[%clk 0:02:58.8]} 3... e6 {[%clk 0:02:55]} 4.
c4 {[%clk 0:02:59]} 4... a6 {[%clk 0:02:54.4]} 5. b3 {[%clk 0:02:57.1]} 5...
Nbd7 {[%clk 0:02:54]} 6. Bd3 {[%clk 0:02:54.9]} 6... b6 {[%clk 0:02:53.7]} 7.
O-O {[%clk 0:02:54.5]} 7... Bb7 {[%clk 0:02:53.2]} 8. Bb2 {[%clk 0:02:55]} 8...
Bd6 {[%clk 0:02:52]} 9. Nbd2 {[%clk 0:02:55.1]} 9... Ne4 {[%clk 0:02:48.6]} 10.
Qc2 {[%clk 0:02:55]} 10... f5 {[%clk 0:02:43.2]} 11. cxd5 {[%clk 0:02:54.8]}
11... exd5 {[%clk 0:02:44.1]} 12. Ne5 {[%clk 0:02:55.2]} 12... O-O {[%clk
0:02:41.4]} 13. f3 {[%clk 0:02:54.5]} 13... Nxd2 {[%clk 0:02:40.6]} 14. Qxd2
{[%clk 0:02:55.4]} 14... g6 {[%clk 0:02:39.5]} 15. Rac1 {[%clk 0:02:53.5]} 15...
c5 {[%clk 0:02:33.5]} 16. Nxd7 {[%clk 0:02:51.8]} 16... Qxd7 {[%clk 0:02:32.3]}
17. dxc5 {[%clk 0:02:52.4]} 17... bxc5 {[%clk 0:02:25.2]} 18. Qc3 {[%clk
0:02:49.3]} 18... d4 {[%clk 0:01:48.8]} 19. exd4 {[%clk 0:02:37.7]} 19... Be7
{[%clk 0:01:27.2]} 20. Bc4+ {[%clk 0:02:20.3]} 20... Kg7 {[%clk 0:01:11.5]} 21.
dxc5+ {[%clk 0:02:16.7]} 21... Bf6 {[%clk 0:01:11.7]} 22. Qc2 {[%clk 0:02:17]}
22... Rac8 {[%clk 0:01:05.6]} 23. b4 {[%clk 0:02:15]} 23... a5 {[%clk
0:01:02.9]} 24. a3 {[%clk 0:02:14]} 24... Bc6 {[%clk 0:01:01.9]} 25. Bxf6+
{[%clk 0:02:12]} 25... Rxf6 {[%clk 0:01:02.8]} 26. Rcd1 {[%clk 0:02:09.3]} 26...
Qb7 {[%clk 0:00:59.5]} 27. Qc3 {[%clk 0:02:08.6]} 27... axb4 {[%clk 0:00:55.7]}
28. axb4 {[%clk 0:02:09.5]} 28... Rf8 {[%clk 0:00:56.3]} 29. Rd6 {[%clk
0:02:08.2]} 29... Ba4 {[%clk 0:00:44.6]} 30. Re1 {[%clk 0:02:06.1]} 30... h5
{[%clk 0:00:22.6]} 31. Ree6 {[%clk 0:02:02.6]} 1-0

[Event "*** Titled Tuesday Blitz"]
[Site "Chess.com"]
[Date "2020.04.07"]
[Round "4"]
[White "The_Machine04"]
[Black "DryCounty"]
[Result "0-1"]
[WhiteElo "2380"]
[BlackElo "2599"]
[TimeControl "180+1"]
[EndTime "13:38:41 PDT"]
[Termination "DryCounty won by resignation"]

1. d4 {[%clk 0:03:00.9]} 1... Nf6 {[%clk 0:02:59.1]} 2. Bg5 {[%clk 0:03:00.5]}
2... Ne4 {[%clk 0:02:58.2]} 3. Bf4 {[%clk 0:02:59.9]} 3... c5 {[%clk 0:02:57.9]}
4. f3 {[%clk 0:03:00.1]} 4... Qa5+ {[%clk 0:02:57.4]} 5. c3 {[%clk 0:03:00.1]}
5... Nf6 {[%clk 0:02:57.1]} 6. d5 {[%clk 0:03:00.2]} 6... Qb6 {[%clk 0:02:56.5]}
7. Bc1 {[%clk 0:02:58.4]} 7... e6 {[%clk 0:02:56]} 8. e4 {[%clk 0:02:58.4]} 8...
c4 {[%clk 0:02:56.1]} 9. Bxc4 {[%clk 0:02:47.6]} 9... Bc5 {[%clk 0:02:55.8]} 10.
Ne2 {[%clk 0:02:44.9]} 10... exd5 {[%clk 0:02:54.5]} 11. exd5 {[%clk 0:02:31]}
11... O-O {[%clk 0:02:53.8]} 12. a4 {[%clk 0:02:15.4]} 12... a5 {[%clk
0:02:50.5]} 13. Kf1 {[%clk 0:02:04.9]} 13... d6 {[%clk 0:02:46.9]} 14. Ng3
{[%clk 0:01:59.6]} 14... Nbd7 {[%clk 0:02:44.5]} 15. Bf4 {[%clk 0:01:54]} 15...
Re8 {[%clk 0:02:40]} 16. b3 {[%clk 0:01:42.2]} 16... Ne5 {[%clk 0:02:39]} 17.
Bxe5 {[%clk 0:01:37.9]} 17... Rxe5 {[%clk 0:02:34.3]} 18. Qd3 {[%clk 0:01:33.7]}
18... Bd7 {[%clk 0:02:26.8]} 19. Nd2 {[%clk 0:01:32.8]} 19... Re3 {[%clk
0:02:20.2]} 20. Qc2 {[%clk 0:01:29.5]} 20... Rae8 {[%clk 0:02:18.9]} 21. Nde4
{[%clk 0:01:27.7]} 21... Nxe4 {[%clk 0:02:14.5]} 22. fxe4 {[%clk 0:01:08.3]}
22... Qd8 {[%clk 0:02:05.6]} 23. Be2 {[%clk 0:00:57.3]} 23... Qf6+ {[%clk
0:02:03]} 24. Bf3 {[%clk 0:00:54.1]} 24... Rxc3 {[%clk 0:01:58.8]} 25. Qd1
{[%clk 0:00:53.1]} 25... Bg4 {[%clk 0:01:50.2]} 26. Nf5 {[%clk 0:00:42.8]} 26...
Bxf5 {[%clk 0:01:41.7]} 27. exf5 {[%clk 0:00:43.7]} 27... Qh4 {[%clk 0:01:39]}
28. g3 {[%clk 0:00:37.5]} 28... Qh3+ {[%clk 0:01:34.6]} 0-1